bitfinex/quotes_BTCUSD_20250219
["timestamp","ask_amount","ask_price","bid_price","bid_amount"]
[1739938658626,0.16721261,95869.0,95868.0,0.1162038]
[1739938658837,0.01721261,95869.0,95868.0,0.1623038]
[1739938659050,0.01721261,95869.0,95868.0,0.1853038]
[1739938660676,0.01721261,95869.0,95868.0,0.18634672]
[1739938660877,0.01721261,95869.0,95868.0,0.1853038]
[1739938661370,0.01721261,95869.0,95868.0,0.20293847]
[1739938661591,0.01721261,95869.0,95868.0,0.1883038]
[1739938663274,0.0008512,95869.0,95868.0,0.1883038]
[1739938666363,0.0172107,95869.0,95868.0,0.1883038]
[1739938669236,0.02428727,95905.0,95869.0,0.0981]
[1739938669381,0.00013137,95887.0,95873.0,0.0751]
[1739938669600,0.00013137,95887.0,95874.0,0.023]
[1739938670612,0.00213137,95887.0,95874.0,0.023]
[1739938670807,0.01635888,95884.0,95874.0,0.023]
[1739938671253,0.01635888,95884.0,95876.0,0.023]
[1739938671254,0.00785307,95881.0,95876.0,0.023]
[1739938671398,0.00785307,95881.0,95878.0,0.023]
[1739938672255,0.00785307,95881.0,95879.0,0.0803]
[1739938673961,0.00785307,95881.0,95879.0,0.0813]
[1739938676140,0.02421119,95881.0,95879.0,0.0813]
[1739938677423,0.33951048,95912.0,95879.0,0.0813]
[1739938677628,4.800331,95911.0,95880.0,0.01191316]
[1739938678023,4.319444,95911.0,95880.0,0.01191316]
[1739938678284,0.00768834,95882.0,95880.0,0.01191316]
[1739938679013,0.00768834,95882.0,95879.0,0.0803]
[1739938680297,0.02404776,95882.0,95879.0,0.0803]
[1739938680869,0.02404776,95882.0,95879.0,0.0833]
[1739938681455,0.02404776,95882.0,95879.0,0.0803]
[1739938681979,0.02404776,95882.0,95879.0,0.0823]
[1739938683083,0.00768834,95882.0,95879.0,0.0803]
[1739938683472,0.00768834,95882.0,95879.0,0.0833]
[1739938683873,0.00853954,95882.0,95879.0,0.0833]
[1739938686381,0.02489905,95882.0,95879.0,0.0833]
[1739938688495,0.02489905,95882.0,95880.0,0.01063]
[1739938689307,0.02489905,95882.0,95879.0,0.0833]
[1739938689638,0.02489905,95882.0,95879.0,0.0803]
[1739938690142,0.02489905,95882.0,95880.0,0.003]
[1739938690680,0.02489905,95882.0,95879.0,0.0803]
[1739938691104,0.02489905,95882.0,95879.0,0.0833]
[1739938691325,0.02489905,95882.0,95880.0,0.01063]
[1739938691898,0.02489905,95882.0,95879.0,0.0803]
[1739938692102,0.00853954,95882.0,95879.0,0.0803]
[1739938692749,0.00853954,95882.0,95880.0,0.003]
[1739938693130,0.00853954,95882.0,95879.0,0.0803]
[1739938693313,0.00853954,95882.0,95879.0,0.0833]
[1739938693725,0.00853954,95882.0,95879.0,0.0803]
[1739938693980,0.00853954,95882.0,95880.0,0.003]
[1739938694278,0.00853954,95882.0,95879.0,0.0803]
[1739938694984,0.00853954,95882.0,95879.0,0.09363]
[1739938696077,0.00853954,95882.0,95879.0,0.0940554]
[1739938696887,0.02489913,95882.0,95879.0,0.0940554]
[1739938699879,0.02489913,95882.0,95879.0,0.0837254]
[1739938702464,0.02489913,95882.0,95879.0,0.0807254]
[1739938703311,0.00853954,95882.0,95879.0,0.0807254]
[1739938703884,0.00853954,95882.0,95879.0,0.0817254]
[1739938704091,0.00853954,95882.0,95879.0,0.0807254]
[1739938704294,0.00853954,95882.0,95879.0,0.08879794]
[1739938704624,0.00853954,95882.0,95879.0,0.08979794]
[1739938706059,0.00853954,95882.0,95879.0,0.08879794]
[1739938706267,0.02489922,95882.0,95879.0,0.08879794]
[1739938706493,0.02489922,95882.0,95879.0,0.09079794]
[1739938706701,0.02489922,95882.0,95879.0,0.08879794]
[1739938707163,0.02489922,95882.0,95879.0,0.09079794]
[1739938709899,0.02489922,95882.0,95879.0,0.0827254]
[1739938713754,0.00853954,95882.0,95879.0,0.0827254]
[1739938716382,0.00853954,95882.0,95879.0,0.0807254]
[1739938716596,0.02489926,95882.0,95879.0,0.0827254]
[1739938717476,0.2944396,95912.0,95879.0,0.0807254]
[1739938717685,0.01635961,95882.0,95880.0,0.00807254]
[1739938717895,0.00788976,95883.0,95880.0,0.00807254]
[1739938718369,0.01635962,95882.0,95880.0,0.00807254]
[1739938718895,0.01635962,95882.0,95879.0,0.0837254]
[1739938719534,0.01635962,95882.0,95879.0,0.0807254]
[1739938719883,0.01635962,95882.0,95880.0,0.003]
[1739938720086,0.01635962,95882.0,95879.0,0.0807254]
[1739938720483,0.01635962,95882.0,95879.0,0.0837254]
[1739938720690,0.01635962,95882.0,95879.0,0.0807254]
[1739938720935,0.01635962,95882.0,95880.0,0.003]
[1739938721344,0.01635962,95882.0,95879.0,0.0807254]
[1739938722005,0.00788976,95883.0,95879.0,0.0807254]
[1739938722737,0.00788976,95883.0,95879.0,0.0837254]
[1739938722943,0.00788976,95883.0,95879.0,0.0807254]
[1739938723187,0.00788976,95883.0,95879.0,0.0827254]
[1739938723589,0.00788976,95883.0,95879.0,0.0807254]
[1739938723765,0.00788976,95883.0,95879.0,0.0827254]
[1739938724105,0.00788976,95883.0,95879.0,0.0807254]
[1739938724526,0.00788976,95883.0,95879.0,0.0827254]
[1739938725656,0.00788976,95883.0,95879.0,0.0807254]
[1739938726005,0.00788976,95883.0,95879.0,0.0827254]
[1739938731926,0.02424942,95883.0,95879.0,0.0827254]
[1739938735948,1.026143,95882.0,95879.0,0.0024254]
[1739938736150,0.02424942,95883.0,95879.0,0.0024254]
[1739938736151,0.868194,95881.0,95879.0,0.0024254]
[1739938736426,0.857577,95880.0,95879.0,0.0024254]
[1739938736643,0.870198,95881.0,95879.0,0.0024254]
[1739938736849,0.901568,95881.0,95879.0,0.0004254]
[1739938737049,0.901568,95881.0,95879.0,0.0034254]
[1739938737255,0.901568,95881.0,95879.0,0.0004254]
[1739938738119,0.901568,95881.0,95868.0,0.0846256]
[1739938738326,0.901568,95881.0,95868.0,0.03865697]
[1739938739794,0.904568,95881.0,95868.0,0.03865697]
[1739938739998,2.867432,95880.0,95868.0,0.03865697]
[1739938740387,2.147131,95879.0,95868.0,0.03865697]
[1739938740630,2.331273,95881.0,95868.0,0.03865697]
[1739938740836,2.311206,95881.0,95868.0,0.03865697]
[1739938741006,2.309206,95880.0,95869.0,0.0114757]
[1739938741212,0.002,95881.0,95869.0,0.0114757]
[1739938742073,0.01636019,95882.0,95869.0,0.0114757]
[1739938742437,0.002,95880.0,95870.0,0.0787]
[1739938742780,0.01636019,95882.0,95870.0,0.0787]
[1739938743078,0.001,95881.0,95870.0,0.09158327]
[1739938743307,0.001,95881.0,95870.0,0.0787]
[1739938743500,0.00788976,95883.0,95870.0,0.0787]
[1739938743688,0.001,95880.0,95870.0,0.0787]
[1739938743883,0.00788976,95883.0,95870.0,0.0787]
[1739938745259,0.001,95881.0,95870.0,0.0787]
[1739938745609,0.00788976,95883.0,95871.0,0.0117357]
[1739938745765,0.00874076,95883.0,95871.0,0.0117357]
[1739938745970,0.01074076,95883.0,95871.0,0.0117357]
[1739938746168,0.01636058,95881.0,95871.0,0.0117357]
[1739938746375,0.01736058,95881.0,95871.0,0.0117357]
[1739938746718,0.01636058,95881.0,95871.0,0.0117357]
[1739938746940,0.15,95909.0,95873.0,0.0453]
[1739938747127,0.01636053,95879.0,95873.0,0.0453]
[1739938747343,0.002,95883.0,95873.0,0.0453]
[1739938747546,0.002,95883.0,95874.0,0.01755662]
[1739938747701,0.01636054,95878.0,95874.0,0.01755662]
[1739938748108,0.00792661,95875.0,95874.0,0.09745662]
[1739938749237,0.00792661,95875.0,95874.0,0.09945662]
[1739938749419,0.00792661,95875.0,95874.0,0.09745662]
[1739938749860,0.00792661,95875.0,95874.0,0.10145662]
[1739938750172,0.00792661,95875.0,95874.0,0.0839]
[1739938752160,0.00792661,95875.0,95874.0,0.0799]
[1739938752570,0.00792661,95875.0,95874.0,0.0819]
[1739938752779,0.00792661,95875.0,95874.0,0.0799]
[1739938752927,0.00792661,95875.0,95874.0,0.0819]
[1739938753495,2.77112461,95875.0,95874.0,0.0819]
[1739938753703,1.94813561,95875.0,95874.0,0.0819]
[1739938755656,1.93537661,95875.0,95874.0,0.0819]
[1739938756336,1.95173724,95875.0,95874.0,0.0819]
[1739938756989,1.33444624,95875.0,95874.0,0.0819]
[1739938757646,1.33444624,95875.0,95874.0,0.05120666]
[1739938757807,1.21506924,95875.0,95874.0,0.002]
[1739938758162,1.21506924,95875.0,95868.0,0.03095697]
[1739938758395,0.02428724,95875.0,95868.0,0.03095697]
[1739938758570,1.205834,95874.0,95868.0,0.03095697]
[1739938759076,1.205834,95874.0,95868.0,0.03138247]
[1739938759787,0.02428724,95875.0,95868.0,0.03338247]
[1739938759980,2.658644,95874.0,95868.0,0.03338247]
[1739938760193,2.532634,95873.0,95868.0,0.03338247]
[1739938760408,2.660568,95874.0,95868.0,0.03338247]
[1739938760597,2.646505,95874.0,95868.0,0.03338247]
[1739938760799,2.168964,95874.0,95868.0,0.03338247]
[1739938761100,2.257804,95874.0,95868.0,0.03338247]
[1739938761477,2.257804,95874.0,95868.0,0.00255687]
[1739938764605,2.03799,95874.0,95868.0,0.00255687]
[1739938764884,1.630567,95873.0,95868.0,0.00255687]
[1739938765084,1.630567,95873.0,95855.0,0.0004255]
[1739938765085,4.759842,95874.0,95855.0,0.0004255]
[1739938765318,4.800331,95874.0,95855.0,0.0004255]
[1739938765751,4.229737,95874.0,95855.0,0.0004255]
[1739938765999,4.207532,95873.0,95855.0,0.0004255]
[1739938766311,4.109506,95874.0,95855.0,0.0004255]
[1739938766519,4.217839,95873.0,95855.0,0.0004255]
[1739938766763,3.780488,95872.0,95855.0,0.0004255]
[1739938766971,4.017196,95873.0,95855.0,0.0312255]
[1739938767147,4.166314,95873.0,95855.0,0.0312255]
[1739938767763,3.758835,95872.0,95855.0,0.0312255]
[1739938767971,3.99628592,95874.0,95856.0,0.0822]
[1739938768249,0.01636201,95868.0,95856.0,0.0822]
[1739938768489,2.503568,95867.0,95856.0,0.0822]
[1739938769367,2.338936,95866.0,95856.0,0.0822]
[1739938769568,2.261476,95867.0,95856.0,0.0822]
[1739938769803,2.261476,95867.0,95857.0,0.0162451]
[1739938771451,2.261476,95867.0,95856.0,0.0822]
[1739938772996,2.105754,95866.0,95856.0,0.0822]
[1739938773137,2.110851,95867.0,95856.0,0.0822]
[1739938773326,3.032454,95874.0,95856.0,0.03941]
[1739938773522,3.189075,95874.0,95856.0,0.03941]
[1739938773727,0.0771,95873.0,95855.0,0.0312255]
[1739938773932,3.032988,95873.0,95855.0,0.0312255]
[1739938774176,3.227678,95872.0,95855.0,0.0312255]
[1739938775842,3.405416,95871.0,95855.0,0.0312255]
[1739938776192,3.380055,95871.0,95855.0,0.0312255]
[1739938776391,0.02047483,95870.0,95855.0,0.0312255]
[1739938776596,4.16989,95869.0,95855.0,0.0312255]
[1739938776853,3.100515,95868.0,95855.0,0.0312255]
[1739938777052,4.166752,95869.0,95855.0,0.0312255]
[1739938777272,3.170639,95869.0,95855.0,0.0312255]
[1739938777491,4.146261,95869.0,95855.0,0.0312255]
[1739938777691,0.01636247,95866.0,95855.0,0.0312255]
[1739938777862,2.358994,95865.0,95855.0,0.0312255]
[1739938778644,2.201586,95865.0,95855.0,0.0312255]
[1739938779647,2.201586,95865.0,95851.0,0.03122551]
[1739938779852,2.053715,95865.0,95851.0,0.03122551]
[1739938780079,2.680696,95865.0,95844.0,0.0004256]
[1739938780285,0.01636247,95866.0,95844.0,0.00054439]
[1739938780485,3.335889,95865.0,95844.0,0.00054439]
[1739938780832,0.01636247,95866.0,95844.0,0.00054439]
[1739938780833,2.912688,95864.0,95844.0,0.00054439]
[1739938781055,3.457836,95865.0,95844.0,0.00054439]
[1739938781261,4.570364,95865.0,95844.0,0.00054439]
[1739938781445,3.051882,95864.0,95844.0,0.00054439]
[1739938781575,3.978095,95865.0,95844.0,0.00054439]
[1739938781777,3.669856,95864.0,95844.0,0.00054439]
[1739938782017,3.238972,95863.0,95844.0,0.00054439]
[1739938782273,3.34147565,95863.0,95844.0,0.00054439]
[1739938782460,3.201952,95862.0,95844.0,0.00054439]
[1739938782660,4.275749,95861.0,95844.0,0.00054439]
[1739938782835,3.592757,95860.0,95844.0,0.00054439]
[1739938783043,4.205353,95862.0,95844.0,0.00054439]
[1739938783251,0.10250365,95861.0,95844.0,0.00054439]
[1739938783453,3.676859,95860.0,95844.0,0.00054439]
[1739938783653,2.029897,95859.0,95844.0,0.00054439]
[1739938783847,2.429919,95860.0,95844.0,0.00054439]
[1739938784234,0.00772592,95845.0,95844.0,0.00054439]
[1739938784673,0.00772592,95845.0,95844.0,1e-08]
[1739938785260,0.00772592,95845.0,95840.0,0.0799]
[1739938785467,0.43683,95844.0,95840.0,0.0799]
[1739938786275,0.45319424,95844.0,95840.0,0.0799]
[1739938786525,0.01636424,95844.0,95840.0,0.0799]
[1739938786704,0.01636424,95844.0,95839.0,0.0488]
[1739938787102,0.01636424,95844.0,95841.0,0.0024255]
[1739938790639,0.23244156,95869.0,95841.0,0.0024255]
[1739938790838,0.0163645,95844.0,95842.0,0.02829255]
[1739938791063,0.0163645,95844.0,95841.0,0.0024255]
[1739938791384,0.00013135,95865.0,95841.0,0.0024255]
[1739938791621,0.0163645,95844.0,95841.0,0.0004255]
[1739938791801,0.00780497,95843.0,95839.0,0.01803872]
[1739938793594,0.00780497,95843.0,95841.0,0.002]
[1739938793846,0.00780497,95843.0,95839.0,0.01803872]
[1739938794095,0.931636,95842.0,95839.0,0.01803872]
[1739938794340,0.931636,95842.0,95839.0,0.02003872]
[1739938794577,0.931636,95842.0,95839.0,0.01803872]
[1739938794809,0.931636,95842.0,95841.0,0.002]
[1739938795011,0.931636,95842.0,95839.0,0.01803872]
[1739938795235,0.730508,95841.0,95839.0,0.01803872]
[1739938795441,0.780763,95842.0,95839.0,0.01803872]
[1739938796206,0.780763,95842.0,95841.0,0.0004257]
[1739938797491,0.780763,95842.0,95841.0,0.0024257]
[1739938798883,0.79712774,95842.0,95841.0,0.0024257]
[1739938799695,0.62448874,95842.0,95841.0,0.0024257]
[1739938800478,0.35968974,95842.0,95841.0,0.0024257]
[1739938802533,0.23143574,95842.0,95841.0,0.0024257]
[1739938802739,0.01636474,95842.0,95841.0,0.0024257]
[1739938803159,0.00780497,95843.0,95841.0,0.0024257]
[1739938803366,0.00780497,95843.0,95842.0,0.01021644]
[1739938804428,0.00780497,95843.0,95842.0,0.002]
[1739938805361,0.55358397,95843.0,95842.0,0.002]
[1739938805796,0.53070697,95843.0,95842.0,0.002]
[1739938806207,0.54707049,95843.0,95842.0,0.002]
[1739938809062,0.02416849,95843.0,95842.0,0.002]
[1739938809259,0.02501989,95843.0,95842.0,0.01225901]
[1739938809666,0.00865637,95843.0,95842.0,0.01225901]
[1739938810069,0.00865637,95843.0,95842.0,0.002]
[1739938813078,0.13422537,95843.0,95842.0,0.002]
[1739938813281,0.12485837,95843.0,95842.0,0.002]
[1739938816346,0.0250199,95843.0,95842.0,0.002]
[1739938816575,1.0092239,95843.0,95842.0,0.002]
[1739938819547,0.9979909,95843.0,95842.0,0.002]
[1739938820935,0.4620699,95843.0,95842.0,0.002]
[1739938821134,0.2034819,95843.0,95842.0,0.002]
[1739938823159,0.18711837,95843.0,95842.0,0.002]
[1739938825295,0.05855528,95864.0,95842.0,0.002]
[1739938825493,4.391902,95863.0,95842.0,0.01225901]
[1739938825922,4.40581125,95863.0,95842.0,0.01225901]
[1739938826222,0.01636302,95858.0,95842.0,0.01225901]
[1739938826442,4.140926,95857.0,95842.0,0.01025901]
[1739938826653,4.140926,95857.0,95841.0,0.0004257]
[1739938826854,3.835913,95857.0,95841.0,0.0004257]
[1739938827252,3.82266,95857.0,95841.0,0.0004257]
[1739938827463,3.906976,95857.0,95841.0,0.0004257]
[1739938827670,3.495027,95857.0,95841.0,0.0004257]
[1739938827897,0.00788468,95843.0,95841.0,0.0004257]
[1739938828687,0.02424912,95843.0,95841.0,0.0004257]
[1739938830235,0.02424912,95843.0,95841.0,0.0024257]
[1739938833268,0.00788468,95843.0,95841.0,0.0024257]
[1739938833829,0.21512329,95869.0,95841.0,0.0024257]
[1739938834048,0.0008514,95843.0,95842.0,0.01025901]
[1739938834215,0.0008514,95843.0,95841.0,0.00255705]
[1739938834846,0.0008514,95843.0,95841.0,0.00055705]
[1739938835195,0.0008514,95843.0,95842.0,0.002]
[1739938835696,0.0008514,95843.0,95841.0,0.00055705]
[1739938835881,0.0008514,95843.0,95841.0,0.00255705]
[1739938836058,0.132099,95842.0,95841.0,0.00255705]
[1739938836258,0.132099,95842.0,95841.0,0.00055705]
[1739938836484,0.01721524,95843.0,95841.0,0.00055705]
[1739938836715,0.02522157,95843.0,95841.0,0.00055705]
[1739938836895,0.290544,95842.0,95841.0,0.00055705]
[1739938837218,0.259161,95842.0,95841.0,0.00055705]
[1739938837976,0.259161,95842.0,95841.0,0.00355705]
[1739938838373,0.259161,95842.0,95841.0,0.00055705]
[1739938838603,0.259161,95842.0,95841.0,0.00455705]
[1739938841381,0.02522157,95843.0,95841.0,0.00455705]
[1739938843068,0.02522157,95843.0,95841.0,0.00055705]
[1739938843283,0.00885773,95843.0,95841.0,0.00055705]
[1739938844425,0.00885773,95843.0,95841.0,0.00355705]
[1739938847541,0.02522193,95843.0,95841.0,0.00355705]
[1739938849466,0.02522193,95843.0,95839.0,1e-08]
[1739938851238,0.02522193,95843.0,95839.0,0.00300001]
[1739938853083,0.00885773,95843.0,95839.0,0.00300001]
[1739938856120,0.02522205,95843.0,95839.0,0.00300001]
[1739938862976,1.873919,95842.0,95839.0,0.00300001]
[1739938863355,0.477184,95841.0,95839.0,0.00300001]
[1739938863519,0.00885773,95843.0,95839.0,0.00300001]
[1739938863719,0.814891,95842.0,95839.0,0.00300001]
[1739938864042,0.814891,95842.0,95839.0,1e-08]
[1739938864455,0.775945,95842.0,95839.0,0.00100001]
[1739938865162,0.734845,95842.0,95839.0,0.00100001]
[1739938865371,0.594755,95842.0,95839.0,0.00100001]
[1739938866386,0.6111194,95842.0,95839.0,0.00100001]
[1739938866680,0.669743,95841.0,95839.0,0.00100001]
[1739938866906,0.0163644,95842.0,95839.0,0.00100001]
[1739938867100,0.410021,95841.0,95839.0,0.00100001]
[1739938867450,0.0163644,95842.0,95839.0,0.00100001]
[1739938867649,0.752126,95841.0,95839.0,1e-08]
[1739938867893,0.752126,95841.0,95839.0,0.00100001]
[1739938868307,0.752126,95841.0,95839.0,1e-08]
[1739938868520,0.0163644,95842.0,95839.0,1e-08]
[1739938868827,0.783509,95841.0,95839.0,0.00100001]
[1739938869945,0.78355278,95841.0,95839.0,1e-08]
[1739938870144,1.511806,95840.0,95839.0,0.00100001]
[1739938870485,1.472409,95840.0,95839.0,0.00100001]
[1739938871129,1.472409,95840.0,95839.0,1e-08]
[1739938871340,1.472409,95840.0,95839.0,0.00100001]
[1739938878043,1.18571216,95840.0,95839.0,0.00100001]
[1739938878391,1.531763,95840.0,95839.0,0.00100001]
[1739938878605,1.245067,95840.0,95839.0,0.00100001]
[1739938880159,4.378e-05,95841.0,95839.0,0.00100001]
[1739938880332,1.266312,95840.0,95839.0,0.00100001]
[1739938880856,1.234928,95840.0,95839.0,0.00100001]
[1739938882065,1.25129243,95840.0,95839.0,0.00100001]
[1739938883276,1.234928,95840.0,95839.0,0.00100001]
[1739938885630,1.012233,95840.0,95839.0,0.00100001]
[1739938886209,0.52816143,95840.0,95839.0,0.00100001]
[1739938886408,0.01636443,95840.0,95839.0,0.00100001]
[1739938886587,0.01636443,95840.0,95839.0,0.01418512]
[1739938886792,0.01636443,95840.0,95839.0,0.11628512]
[1739938888213,0.01636443,95840.0,95839.0,0.10310001]
[1739938893299,4.378e-05,95841.0,95840.0,0.023]
[1739938895481,4.378e-05,95841.0,95840.0,0.024]
[1739938896215,0.01640769,95841.0,95840.0,0.024]
[1739938896985,0.01640769,95841.0,95840.0,0.2512433]
[1739938897155,0.01640769,95841.0,95840.0,0.32723944]
[1739938897677,0.01640769,95841.0,95840.0,0.52646534]
[1739938900614,0.0008508,95869.0,95840.0,0.52646534]
[1739938900615,0.15,95902.0,95844.0,0.023]
[1739938900828,0.15,95900.0,95846.0,0.0823]
[1739938901050,0.15,95898.0,95847.0,0.06016401]
[1739938901282,0.01636151,95888.0,95849.0,0.023]
[1739938901514,0.15,95886.0,95852.0,0.023]
[1739938901745,0.15,95884.0,95852.0,0.023]
[1739938901972,0.15,95882.0,95852.0,0.023]
[1739938902226,4.096446,95881.0,95854.0,0.023]
[1739938903085,0.02051099,95874.0,95854.0,0.023]
[1739938903301,4.096446,95873.0,95853.0,0.0136964]
[1739938903718,3.40994,95873.0,95853.0,0.0136964]
[1739938903917,3.612873,95873.0,95853.0,0.0136964]
[1739938904454,3.35497146,95873.0,95852.0,0.023]
[1739938904655,3.520868,95872.0,95852.0,0.023]
[1739938905437,3.474431,95872.0,95852.0,0.023]
[1739938905582,3.359372,95872.0,95851.0,0.0768]
[1739938905791,3.276505,95872.0,95851.0,0.0768]
[1739938905997,3.229288,95872.0,95851.0,0.0768]
[1739938906200,3.852026,95872.0,95851.0,0.0768]
[1739938906906,0.00783992,95855.0,95851.0,0.0768]
[1739938909139,0.00783992,95855.0,95851.0,0.0778]
[1739938910109,0.00783992,95855.0,95852.0,0.00788432]
[1739938910523,0.00783992,95855.0,95844.0,0.03605735]
[1739938910732,0.743395,95854.0,95844.0,0.01899872]
[1739938910962,0.00104321,95853.0,95844.0,0.01466108]
[1739938911186,2.346494,95852.0,95844.0,0.01466108]
[1739938911391,0.883813,95852.0,95833.0,0.0004255]
[1739938911535,2.613981,95854.0,95833.0,0.0004255]
[1739938911738,0.00104321,95853.0,95833.0,0.0004255]
[1739938911964,0.01636374,95851.0,95840.0,0.2192336]
[1739938912213,0.447286,95850.0,95840.0,0.2192336]
[1739938912412,0.447286,95850.0,95840.0,0.1992259]
[1739938912619,0.447286,95850.0,95833.0,0.0004255]
[1739938913456,0.00783992,95855.0,95835.0,0.0761]
[1739938913457,0.00104321,95849.0,95835.0,0.0761]
[1739938913658,3.70234321,95853.0,95835.0,0.0761]
[1739938913917,2.49846421,95852.0,95835.0,0.0761]
[1739938914117,1.65294,95851.0,95835.0,0.0761]
[1739938914518,2.049398,95854.0,95835.0,0.0761]
[1739938914760,1.081584,95853.0,95835.0,0.0761]
[1739938914942,0.977543,95854.0,95835.0,0.0761]
[1739938915153,0.977543,95854.0,95840.0,0.01229511]
[1739938915367,0.00783992,95855.0,95840.0,0.01229511]
[1739938915534,1.102608,95854.0,95835.0,0.0761]
[1739938915939,1.005251,95854.0,95835.0,0.0761]
[1739938916139,0.01636408,95851.0,95840.0,0.0789]
[1739938916817,0.139499,95850.0,95840.0,0.0789]
[1739938917177,0.139499,95850.0,95841.0,0.00803689]
[1739938917596,0.250035,95849.0,95841.0,0.00803689]
[1739938917793,0.01636408,95851.0,95841.0,0.00803689]
[1739938918259,0.154385,95850.0,95841.0,0.00803689]
[1739938919058,0.01636408,95851.0,95841.0,0.00803689]
[1739938919305,0.161488,95850.0,95842.0,0.00869369]
[1739938919860,0.130108,95850.0,95842.0,0.00869369]
[1739938920419,0.01636408,95851.0,95842.0,0.00869369]
[1739938923120,0.01636408,95851.0,95843.0,0.0764]
[1739938923354,0.00783992,95855.0,95844.0,0.0472]
[1739938923573,0.00783992,95855.0,95845.0,0.0820937]
[1739938925322,0.00783992,95855.0,95845.0,0.0764]
[1739938925541,0.13832,95854.0,95845.0,0.0764]
[1739938927731,0.0163637,95852.0,95845.0,0.0573337]
[1739938927955,1.76945921,95851.0,95839.0,1e-08]
[1739938928173,1.590096,95850.0,95839.0,1e-08]
[1739938928388,0.00104321,95849.0,95839.0,1e-08]
[1739938928594,1.186255,95848.0,95839.0,1e-08]
[1739938928826,1.166188,95848.0,95839.0,1e-08]
[1739938929035,1.545533,95851.0,95839.0,1e-08]
[1739938929253,0.00104321,95850.0,95845.0,0.0004252]
[1739938929459,1.239007,95849.0,95845.0,0.0004252]
[1739938929676,1.19541721,95848.0,95845.0,0.0004252]
[1739938929878,1.000397,95847.0,95845.0,0.0004252]
[1739938930309,1.608147,95851.0,95845.0,0.0004252]
[1739938930538,1.48482721,95850.0,95845.0,0.0004252]
[1739938930740,1.194374,95849.0,95845.0,0.0004252]
[1739938930914,0.00104321,95848.0,95845.0,0.0004252]
[1739938931076,0.989589,95847.0,95845.0,0.0004252]
[1739938931485,0.0163637,95852.0,95845.0,0.0004252]
[1739938931486,1.556071,95851.0,95845.0,0.0004252]
[1739938931684,0.00104321,95850.0,95845.0,0.0004252]
[1739938931942,1.183314,95849.0,95845.0,0.0004252]
[1739938932067,0.00104321,95848.0,95845.0,0.0004252]
[1739938932266,0.919559,95847.0,95845.0,0.0004252]
[1739938932699,2.917845,95854.0,95845.0,0.0004252]
[1739938932918,0.00104321,95853.0,95845.0,0.0004252]
[1739938933064,2.034783,95852.0,95845.0,0.0004252]
[1739938933272,0.00104321,95851.0,95834.0,0.04741191]
[1739938933479,4.06277621,95852.0,95834.0,0.04741191]
[1739938933685,4.06277621,95851.0,95834.0,0.04741191]
[1739938933909,4.061733,95850.0,95834.0,0.04741191]
[1739938934112,0.00104321,95849.0,95834.0,0.04741191]
[1739938934399,3.39517221,95849.0,95834.0,0.04741191]
[1739938934556,3.082524,95848.0,95834.0,0.04741191]
[1739938934750,0.00104321,95847.0,95834.0,0.04741191]
[1739938935082,4.061733,95846.0,95834.0,0.04741191]
[1739938935296,0.00104321,95845.0,95834.0,0.04741191]
[1739938935502,4.061733,95844.0,95834.0,0.04741191]
[1739938935705,3.81505,95843.0,95834.0,0.04741191]
[1739938935908,0.00765243,95846.0,95834.0,0.04741191]
[1739938936113,3.96014121,95845.0,95834.0,0.04741191]
[1739938936326,3.959098,95844.0,95834.0,0.04741191]
[1739938936478,0.00104321,95843.0,95834.0,0.04741191]
[1739938936676,3.81454021,95843.0,95834.0,0.04741191]
[1739938936908,4.032561,95842.0,95834.0,0.04741191]
[1739938937130,2.562647,95841.0,95834.0,0.04741191]
[1739938937295,3.898708,95845.0,95834.0,0.04741191]
[1739938937495,0.00104321,95844.0,95834.0,0.04741191]
[1739938937673,3.726178,95843.0,95834.0,0.04741191]
[1739938938140,0.00765243,95841.0,95834.0,0.04741191]
[1739938939185,0.00765243,95841.0,95834.0,0.04423749]
[1739938939629,1.47635,95840.0,95822.0,0.0768]
[1739938939836,0.00104321,95839.0,95822.0,0.0285665]
[1739938940035,2.619855,95838.0,95822.0,0.02861028]
[1739938940248,0.00104321,95837.0,95822.0,4.378e-05]
[1739938940445,2.90836,95836.0,95822.0,4.378e-05]
[1739938940652,2.70390321,95835.0,95822.0,4.378e-05]
[1739938940824,2.7145,95834.0,95822.0,4.378e-05]
[1739938941035,0.00104321,95833.0,95822.0,4.378e-05]
[1739938941232,2.42167821,95833.0,95822.0,4.378e-05]
[1739938941440,2.323737,95832.0,95822.0,4.378e-05]
[1739938941790,0.00104321,95831.0,95822.0,4.378e-05]
[1739938942005,0.01636687,95830.0,95822.0,4.378e-05]
[1739938942211,0.01636687,95830.0,95823.0,0.0473]
[1739938943228,0.00765243,95831.0,95823.0,0.0473]
[1739938943441,2.047289,95830.0,95823.0,0.0473]
[1739938944306,0.00765243,95829.0,95823.0,0.0473]
[1739938945971,0.02223387,95846.0,95823.0,0.0473]
[1739938946174,4.061733,95845.0,95823.0,0.06032948]
[1739938947234,4.08238011,95845.0,95823.0,0.06032948]
[1739938947448,4.061733,95844.0,95823.0,0.06032948]
[1739938947675,0.00785492,95824.0,95823.0,0.06032948]
[1739938948975,0.02422183,95824.0,95823.0,0.06032948]
[1739938949411,0.02422183,95824.0,95823.0,0.05328655]
[1739938950038,0.0457196,95824.0,95823.0,0.05328655]
[1739938950246,0.02422183,95824.0,95823.0,0.04025707]
[1739938951136,0.04536324,95824.0,95823.0,0.04025707]
[1739938953112,0.02899633,95824.0,95823.0,0.04068257]
[1739938953444,0.00785492,95824.0,95823.0,0.04068257]
[1739938954635,0.00785492,95824.0,95823.0,0.05305031]
[1739938955334,0.00785492,95824.0,95823.0,0.04068257]
[1739938956181,0.02422177,95824.0,95823.0,0.04068257]
[1739938961645,0.65586077,95824.0,95816.0,0.0004255]
[1739938961818,1.241372,95823.0,95818.0,0.00052572]
[1739938962803,0.897013,95822.0,95818.0,0.00052572]
[1739938962951,0.773515,95821.0,95818.0,0.00052572]
[1739938963142,0.493771,95820.0,95818.0,0.00052572]
[1739938963346,0.933251,95823.0,95818.0,0.00052572]
[1739938963599,0.575636,95822.0,95818.0,0.00052572]
[1739938963789,0.730604,95823.0,95818.0,0.00052572]
[1739938963989,0.285476,95823.0,95819.0,0.00780512]
[1739938964207,0.00785492,95824.0,95819.0,0.00780512]
[1739938967016,0.00785492,95824.0,95820.0,0.0818]
[1739938967212,0.00870612,95824.0,95820.0,0.0818]
[1739938968251,0.02507301,95824.0,95820.0,0.0818]
[1739938968648,0.02507301,95824.0,95820.0,0.10964768]